bitfinex-derivatives/quotes_SOLF0:USTF0_20250224
["timestamp","ask_amount","ask_price","bid_price","bid_amount"]
[1740433464604,26.339,151.35,151.34,48.14068568]
[1740433464797,27.66044037,151.35,151.34,48.14068568]
[1740433465299,27.66044037,151.35,151.34,0.04431739]
[1740433466311,6.6113,151.3,151.21,5.8025]
[1740433466498,19.73,151.34,151.31,48.09636829]
[1740433466899,6.6109,151.31,151.21,12.4176]
[1740433467201,19.73,151.34,151.29,48.09636829]
[1740433467401,1.32144037,151.35,151.29,48.09636829]
[1740433467594,1.69595981,151.34,151.29,48.09636829]
[1740433467793,0.04307966,151.34,151.3,48.13793779]
[1740433468102,0.04385785,151.34,151.31,48.09636829]
[1740433468303,0.04385785,151.34,151.33,48.09636829]
[1740433469504,1.32144037,151.35,151.33,48.09636829]
[1740433469803,10.88,151.37,151.34,48.09636829]
[1740433469997,10.9,151.37,151.36,48.09636829]
[1740433470403,7.7884,151.37,151.36,48.09636829]
[1740433470695,0.05063207,151.38,151.36,48.09636829]
[1740433470901,203.47,151.42,151.41,48.09636829]
[1740433471102,183.74,151.42,151.41,48.09636829]
[1740433474607,172.84,151.42,151.41,48.09636829]
[1740433476702,0.04635408,151.43,151.41,48.09636829]
[1740433477004,0.04635408,151.43,151.42,48.09636829]
[1740433477203,19.73,151.48,151.42,48.09636829]
[1740433477401,19.73,151.48,151.47,48.09636829]
[1740433478005,21.38098375,151.48,151.39,0.1125]
[1740433478200,1.65098375,151.47,151.46,48.09636829]
[1740433478404,10.88,151.49,151.47,48.09636829]
[1740433478602,30.61,151.49,151.47,48.09636829]
[1740433478805,6.6043,151.46,151.39,0.1125]
[1740433479001,6.6043,151.46,151.44,48.09636829]
[1740433479306,19.73,151.48,151.45,48.09636829]
[1740433479501,22.70138812,151.47,151.45,48.13973312]
[1740433479707,1.65099465,151.46,151.45,0.04336483]
[1740433480005,8.25519465,151.46,151.45,48.13973312]
[1740433480206,27.98519465,151.46,151.45,48.13973312]
[1740433481009,21.38099465,151.46,151.45,48.13973312]
[1740433481509,1.65099465,151.46,151.45,0.04336483]
[1740433481704,27.98519465,151.46,151.45,0.04336483]
[1740433483012,27.98535646,151.46,151.45,0.04336483]
[1740433484912,29.30583711,151.46,151.45,0.04336483]
[1740433485116,29.30584177,151.46,151.45,0.04336483]
[1740433485518,27.65468065,151.46,151.45,0.04336483]
[1740433485718,22.70184752,151.46,151.27,191.0]
[1740433485919,26.3359,151.42,151.41,48.09636829]
[1740433486120,27.98726687,151.42,151.41,48.09636829]
[1740433486713,21.38136687,151.42,151.28,1.7767]
[1740433486919,19.13798297,151.41,151.4,48.14017233]
[1740433487111,19.13798297,151.41,151.4,48.09636829]
[1740433487313,12.53165072,151.41,151.39,0.04346146]
[1740433487616,17.4864,151.41,151.4,48.09636829]
[1740433487820,19.13803477,151.41,151.4,48.09636829]
[1740433491325,19.13806682,151.41,151.4,48.09636829]
[1740433492227,38.86806682,151.41,151.4,48.09636829]
[1740433493226,26.3373,151.39,151.38,0.04763047]
[1740433493423,22.70275804,151.39,151.29,0.0672]
[1740433493724,6.6086,151.36,151.29,0.0672]
[1740433493923,1.65232538,151.35,151.29,0.0672]
[1740433494120,8.26178481,151.34,151.29,0.0672]
[1740433494523,8.26178481,151.34,151.33,38.13326829]
[1740433494724,6.6094,151.34,151.33,38.13326829]
[1740433495529,0.04984714,151.35,151.33,38.13326829]
[1740433495729,0.04984714,151.35,151.34,38.03326829]
[1740433496923,10.88,151.37,151.34,38.03326829]
[1740433497130,10.88,151.37,151.33,0.1]
[1740433497332,10.88,151.37,151.36,38.03326829]
[1740433497532,12.53215901,151.37,151.36,38.03326829]
[1740433500233,1.65215901,151.37,151.36,38.03326829]
[1740433500733,18.85745218,151.38,151.36,38.03326829]
[1740433500937,18.85745218,151.38,151.37,38.03326829]
[1740433501229,20.50959994,151.38,151.37,38.03326829]
[1740433501734,20.50960356,151.38,151.37,38.03326829]
[1740433502041,13.90190356,151.38,151.37,38.03326829]
[1740433502229,12.24975218,151.38,151.37,38.03326829]
[1740433503841,1.36975218,151.38,151.37,38.03326829]
[1740433504536,30.61,151.43,151.37,38.03326829]
[1740433504730,30.61,151.43,151.42,38.03326829]
[1740433505638,32.26132805,151.43,151.42,38.03326829]
[1740433505935,30.61,151.43,151.41,0.04868868]
[1740433506134,30.61,151.43,151.41,38.08195697]
[1740433508335,0.04726308,151.44,151.42,38.03326829]
[1740433508535,0.04726308,151.44,151.43,38.03326829]
[1740433508936,0.04726308,151.44,151.41,0.04868868]
[1740433509136,0.04726308,151.44,151.43,38.03326829]
[1740433509337,0.04726308,151.44,151.41,0.04868868]
[1740433509638,0.04726308,151.44,151.43,38.03326829]
[1740433510040,0.04726308,151.44,151.41,0.04868868]
[1740433510332,0.04726308,151.44,151.43,38.03326829]
[1740433510836,0.04726308,151.44,151.41,0.04868868]
[1740433511039,0.04726308,151.44,151.43,38.03326829]
[1740433511239,0.04726308,151.44,151.41,0.04868868]
[1740433511435,0.04726308,151.44,151.43,38.03326829]
[1740433512433,10.88,151.47,151.43,38.03326829]
[1740433512634,82.27322505,151.49,151.46,38.03326829]
[1740433512936,10.88,151.48,151.36,1.7803]
[1740433513133,10.88,151.48,151.47,38.03326829]
[1740433513641,82.32117379,151.49,151.47,38.03326829]
[1740433513934,82.32117379,151.49,151.48,38.03326829]
[1740433514540,192.96194136,151.53,151.48,38.03326829]
[1740433514731,1.65042257,151.52,151.46,0.04776327]
[1740433514935,192.96194136,151.53,151.52,38.03326829]
[1740433515238,185.45041172,151.53,151.52,38.03326829]
[1740433515433,183.8,151.53,151.52,38.03326829]
[1740433516540,204.94987065,151.53,151.36,191.0]
[1740433516740,19.83,151.51,151.46,27.42406829]
[1740433516940,22.80049842,151.5,151.46,27.42406829]
[1740433517134,2.97058556,151.49,151.35,6.6089]
[1740433517341,1.32021915,151.49,151.48,27.42406829]
[1740433517937,22.8010356,151.49,151.47,0.04871698]
[1740433518137,8.25411645,151.48,151.47,0.04871698]
[1740433518338,1.65081645,151.48,151.47,0.04871698]
[1740433518640,1.65093109,151.48,151.47,0.04871698]
[1740433518939,8.25423109,151.48,151.47,0.04871698]
[1740433519138,1.32021915,151.49,151.47,27.47278527]
[1740433519340,7.92341915,151.49,151.47,27.47278527]
[1740433519540,7.92341915,151.49,151.47,0.04871698]
[1740433519933,1.32021915,151.49,151.47,27.47278527]
[1740433521943,26.4333,151.48,151.47,0.04871698]
[1740433522139,28.08426934,151.48,151.47,0.04871698]
[1740433522333,24.81737565,151.48,151.34,0.3091]
[1740433522538,6.6048,151.45,151.44,27.42406829]
[1740433522842,17.4848,151.45,151.44,27.42406829]
[1740433523041,10.88,151.45,151.35,6.6086]
[1740433523240,6.6055,151.44,151.35,6.6086]
[1740433523436,6.6055,151.44,151.38,0.04576352]
[1740433523638,0.04900279,151.41,151.38,0.04576352]
[1740433524039,0.04900279,151.41,151.4,27.42406829]
[1740433527246,6.65540279,151.41,151.38,0.04576352]
[1740433527442,6.65540279,151.41,151.4,27.42406829]
[1740433527644,0.04900279,151.41,151.39,27.42406829]
[1740433527945,6.6071,151.4,151.38,27.46983181]
[1740433528146,0.04900279,151.41,151.38,0.04576352]
[1740433528348,1.3699195,151.41,151.38,0.04576352]
[1740433528539,24.69882552,151.4,151.33,0.1]
[1740433528739,2.97291278,151.39,151.36,27.42406829]
[1740433528942,1.32109122,151.39,151.34,27.42406829]
[1740433529240,1.65204138,151.38,151.33,0.1]
[1740433529446,33.68330715,151.37,151.33,0.1]
[1740433529647,6.6094,151.34,151.33,0.1]
[1740433529843,1.65248462,151.34,151.23,0.4721]
[1740433530046,1.32135306,151.36,151.31,27.42406829]
[1740433530244,1.65251301,151.35,151.31,27.42406829]
[1740433530447,2.97404069,151.34,151.23,0.4721]
[1740433530647,1.65269151,151.33,151.29,27.42406829]
[1740433530837,1.32152768,151.34,151.29,27.42406829]
[1740433531148,6.6119,151.29,151.17,71.06368888]
[1740433531446,6.6119,151.29,151.28,27.42406829]
[1740433531647,17.4919,151.29,151.28,27.42406829]
[1740433531839,6.6122,151.28,151.27,0.04969158]
[1740433532042,6.6122,151.28,151.17,77.68048888]
[1740433532344,6.6122,151.28,151.27,27.42406829]
[1740433532847,6.6122,151.28,151.26,0.04723362]
[1740433533150,1.32205182,151.28,151.25,27.42406829]
[1740433533348,1.32205182,151.28,151.25,27.47460415]
[1740433533546,1.32205182,151.28,151.25,0.05053586]
[1740433533850,1.9773,151.27,151.17,70.59158888]
[1740433534049,1.32222662,151.26,151.22,27.42406829]
[1740433534446,1.32222662,151.26,151.17,70.59158888]
[1740433534750,1.32222662,151.26,151.22,27.42406829]
[1740433534956,0.04862532,151.23,151.22,27.42406829]
[1740433535146,6.6149,151.22,151.2,0.0480037]
[1740433535349,6.6149,151.22,151.21,27.42406829]
[1740433536656,10.88,151.24,151.21,27.42406829]
[1740433536853,9.55501139,151.24,151.23,27.42406829]
[1740433537054,7.16638033,151.24,151.23,27.42406829]
[1740433537264,1.32222662,151.26,151.23,27.42406829]
[1740433537553,1.32222662,151.26,151.25,27.42406829]
[1740433537745,0.28516707,151.26,151.25,27.42406829]
[1740433538654,178.75624501,151.29,151.25,27.42406829]
[1740433538954,178.75624501,151.29,151.28,27.42406829]
[1740433539453,178.75624501,151.29,151.24,0.04545286]
[1740433539655,178.75624501,151.29,151.28,27.42406829]
[1740433540151,178.75624501,151.29,151.24,0.04545286]
[1740433540351,178.75624501,151.29,151.28,27.42406829]
[1740433540955,6.6121,151.28,151.24,0.04545286]
[1740433541352,6.6121,151.28,151.27,27.42406829]
[1740433541952,6.6134,151.25,151.24,0.04545286]
[1740433545151,6.6177,151.16,151.05,6.6218]
[1740433545351,10.88,151.16,151.05,0.6817]
[1740433545555,10.88,151.16,151.15,27.42406829]
[1740433546154,30.71,151.16,151.15,27.42406829]
[1740433546957,37.3273,151.16,151.15,27.42406829]
[1740433547362,37.3273,151.16,151.14,0.04777478]
[1740433547555,30.71,151.16,151.15,27.42406829]
[1740433547756,37.3273,151.16,151.15,27.42406829]
[1740433547950,30.71,151.16,151.14,0.04777478]
[1740433548555,32.7181,151.16,151.15,27.42406829]
[1740433548755,39.3354,151.16,151.15,27.42406829]
[1740433549053,32.7181,151.16,151.14,0.04777478]
[1740433549259,1.32318888,151.15,150.97,70.59158888]
[1740433549455,26.4494,151.12,151.09,17.44246829]
[1740433549861,26.4494,151.12,150.98,0.7342]
[1740433550062,26.4494,151.12,151.09,17.44246829]
[1740433550261,6.6194,151.12,151.09,17.44246829]
[1740433550459,6.66110923,151.12,151.1,17.44246829]
[1740433550863,0.04170923,151.12,151.09,0.04876959]
[1740433551058,0.04170923,151.12,151.1,17.44246829]
[1740433551260,0.04170923,151.12,151.09,0.04876959]
[1740433551554,6.6198,151.11,151.09,0.04876959]
[1740433551750,0.04170923,151.12,151.09,0.04876959]
[1740433552158,1.32353914,151.11,150.98,0.7342]
[1740433552356,1.32353914,151.11,151.07,17.44246829]
[1740433552851,1.32353914,151.11,150.99,6.6243]
[1740433553060,1.32353914,151.11,151.07,17.44246829]
[1740433553455,1.32353914,151.11,151.03,0.04467391]
[1740433553758,12.27086503,151.11,151.09,17.44246829]
[1740433553960,18.89046503,151.11,151.09,17.44246829]
[1740433554158,12.22353914,151.11,150.99,0.1075]
[1740433554355,12.22353914,151.11,151.08,0.04191331]
[1740433554561,12.22353914,151.11,151.1,17.44246829]
[1740433554858,12.26641718,151.11,151.1,17.44246829]
[1740433555055,12.26641718,151.11,151.08,0.04857158]
[1740433555260,12.26641718,151.11,151.1,17.44246829]
[1740433555756,12.26641718,151.11,151.08,0.04857158]
[1740433555962,12.26641718,151.11,151.1,17.44246829]
[1740433556161,12.26641718,151.11,151.08,0.04857158]
[1740433556363,12.26641718,151.11,151.1,17.44246829]
[1740433556865,12.26641718,151.11,151.08,0.04857158]
[1740433557059,12.26641718,151.11,151.1,17.44246829]
[1740433557466,12.26641718,151.11,151.08,0.04857158]
[1740433557762,12.26641718,151.11,151.09,17.44246829]
[1740433558663,12.26641718,151.11,151.1,17.44246829]
[1740433559059,12.26641718,151.11,151.08,0.04857158]
[1740433559263,12.26641718,151.11,151.1,17.44246829]
[1740433559463,12.26641718,151.11,151.08,0.04857158]
[1740433559763,12.26641718,151.11,151.1,17.44246829]
[1740433560161,12.26641718,151.11,151.08,0.04857158]
[1740433560364,12.26641718,151.11,151.1,17.44246829]
[1740433560565,12.26641718,151.11,151.09,17.44246829]
[1740433560968,12.26641718,151.11,150.99,0.1075]
[1740433561166,12.26641718,151.11,151.07,14.32726829]
[1740433561363,12.22353914,151.11,151.07,14.32726829]
[1740433561563,1.21635504,151.1,150.99,0.1075]
[1740433561764,12.22353914,151.11,151.07,14.32726829]
[1740433561964,9.16018306,151.1,151.07,14.32726829]
[1740433562165,1.32362673,151.1,151.07,14.32726829]
[1740433562360,1.32362673,151.1,151.08,14.32726829]
[1740433562568,1.32362673,151.1,151.07,14.37260888]
[1740433562767,1.32362673,151.1,151.07,0.04534059]
[1740433562964,21.8149,151.09,150.89,13.2579]
[1740433563271,1.21645395,151.08,151.0,14.32726829]
[1740433563570,1.21645395,151.07,150.9,2.7119]
[1740433563772,1.21645395,151.06,150.97,14.32726829]
[1740433564064,19.83,151.04,150.9,2.7119]
[1740433564369,31.94645395,151.03,150.98,14.32726829]
[1740433564563,0.04983914,150.99,150.98,14.32726829]
[1740433564763,1.26629309,150.99,150.98,14.32726829]
[1740433565170,0.04983914,150.99,150.98,14.32726829]
[1740433565564,1.26705208,150.99,150.97,0.04825393]
[1740433565880,6.67493914,150.99,150.97,14.37552222]
[1740433566082,0.04983914,150.99,150.97,14.37552222]
[1740433566474,6.67473914,150.99,150.97,14.37552222]
[1740433566881,6.67473914,150.99,150.98,14.32726829]
[1740433567081,6.6252,150.98,150.97,0.04825393]
[1740433567277,6.6252,150.98,150.97,5.393e-05]
[1740433567478,27.6725657,150.98,150.97,5.393e-05]
[1740433567877,27.67271853,150.98,150.97,5.393e-05]
[1740433568374,1.21751853,150.98,150.97,5.393e-05]
[1740433569081,7.84271853,150.98,150.97,5.393e-05]
[1740433571383,27.67271853,150.98,150.97,5.393e-05]
[1740433572083,29.32929088,150.98,150.97,5.393e-05]
[1740433573486,29.32952054,150.98,150.97,5.393e-05]
[1740433574580,40.22952054,150.98,150.97,5.393e-05]
[1740433575487,33.60432054,150.98,150.85,6.6309]
[1740433575683,6.6271,150.94,150.93,14.32726829]
[1740433575890,7.84461853,150.94,150.93,14.32726829]
[1740433577188,7.84461853,150.94,150.92,0.04902827]
[1740433577189,6.6274,150.93,150.92,0.04902827]
[1740433577491,7.84491853,150.93,150.92,14.37629656]
[1740433577788,7.84512525,150.93,150.92,14.37629656]
[1740433577988,27.67512525,150.93,150.92,0.04902827]
[1740433578188,6.6285,150.91,150.8,1.9224]
[1740433578489,21.04772525,150.93,150.8,1.9224]
[1740433578490,10.9,150.9,150.8,1.9224]
[1740433578686,10.9,150.9,150.83,6.6317]
[1740433578892,10.9,150.9,150.89,14.32726829]
[1740433579691,17.5287,150.9,150.89,14.32726829]
[1740433581492,10.9,150.9,150.89,14.32726829]
[1740433582387,0.0495944,150.91,150.89,14.32726829]
[1740433582583,0.0495944,150.91,150.9,14.32726829]
[1740433584690,6.6274,150.93,150.9,14.32726829]
[1740433584886,6.6274,150.93,150.92,14.32726829]
[1740433585587,19.83,150.93,150.88,0.04880783]
[1740433585787,6.6281,150.92,150.91,3.99696829]
[1740433585983,6.67529293,150.92,150.88,0.04880783]
[1740433586191,6.67529293,150.92,150.91,3.99696829]
[1740433586394,0.04719293,150.92,150.91,3.99696829]
[1740433593291,12.2247665,150.97,150.92,6.6276]
[1740433593490,1.3247665,150.97,150.96,3.99696829]
[1740433594398,0.04377746,150.98,150.97,6.6255]
[1740433594895,0.04377746,150.98,150.97,10.62246829]
[1740433595093,36.64776546,151.01,150.98,6.6251]
[1740433595299,36.64776546,151.01,150.95,0.04695997]
[1740433595498,1.65612599,151.0,150.95,0.04695997]
[1740433595696,2.0094,151.01,150.95,0.04695997]
[1740433595999,1.65618618,151.0,150.95,0.04695997]
[1740433596198,1.65617952,150.99,150.95,0.04695997]
[1740433596391,0.04275856,151.0,150.95,0.04695997]
[1740433597295,1.65619699,150.99,150.95,0.04695997]
[1740433597599,0.04275856,151.0,150.95,0.04695997]
[1740433597798,1.65618778,150.99,150.95,0.04695997]
[1740433597999,0.04275856,151.0,150.95,0.04695997]
[1740433598190,1.65617896,150.99,150.95,0.04695997]
[1740433598395,0.04275856,151.0,150.95,0.04695997]
[1740433598695,1.65618173,150.99,150.95,0.04695997]
[1740433598900,4.78107817,150.98,150.83,0.8377]
[1740433599094,21.48618173,150.97,150.84,6.6312]
[1740433599296,4.19876369,150.96,150.84,6.6312]
[1740433599500,12.55618173,150.95,150.83,0.8377]
[1740433599704,1.65618173,150.94,150.83,0.8377]
[1740433599905,1.65618173,150.93,150.83,0.8377]
[1740433600198,0.04216638,150.9,150.87,0.04642731]
[1740433602304,6.6296,150.88,150.87,0.04642731]
[1740433602600,0.04216638,150.9,150.78,2.692]
[1740433602802,1.65730255,150.89,150.78,1.8074]
[1740433603004,1.65730255,150.88,150.74,0.8883]
[1740433603201,19.83,150.86,150.74,0.8883]
[1740433603497,6.6322,150.82,150.74,0.8883]
[1740433603702,19.83,150.86,150.74,0.8883]
[1740433603898,0.05021401,150.8,150.76,0.04813881]
[1740433604101,0.05021401,150.8,150.74,0.8883]
[1740433604405,0.05021401,150.8,150.76,0.04216045]
[1740433606006,0.05021401,150.8,150.77,6.6341]
[1740433606407,6.6309,150.85,150.76,0.04216045]
[1740433607405,6.6306,150.86,150.81,6.6327]
[1740433607606,0.04803059,150.82,150.81,6.6327]
[1740433607805,6.6306,150.86,150.81,6.6327]
[1740433608002,10.9,150.87,150.81,6.6327]
[1740433608404,10.9,150.87,150.8,6.68227412]
[1740433608707,10.9,150.87,150.8,0.04927412]
[1740433608902,0.04761432,150.85,150.81,6.6325]
[1740433609905,0.04761432,150.85,150.8,0.04927412]
[1740433610709,1.37343467,150.85,150.8,0.04927412]
[1740433611301,1.65774006,150.84,150.8,0.04927412]
[1740433611507,1.37343467,150.85,150.8,0.04927412]
[1740433612107,6.6316,150.84,150.8,0.04927412]
[1740433612310,1.37343467,150.85,150.8,0.04927412]
[1740433612709,1.37343467,150.85,150.8,6.68207412]
[1740433613112,1.37343467,150.85,150.8,0.04927412]
[1740433613411,1.37343467,150.85,150.82,6.6319]
[1740433613611,1.37343467,150.85,150.8,0.04927412]
[1740433614111,1.37343467,150.85,150.82,6.6321]
[1740433618019,1.37343467,150.85,150.83,6.6315]
[1740433619012,1.9326,150.92,150.81,1.7116]
[1740433619210,173.42,150.93,150.82,0.9369]
[1740433619618,6.6279,150.92,150.88,6.6293]
[1740433619818,6.6279,150.92,150.82,0.9369]
[1740433620315,0.04448341,150.89,150.85,0.04863512]
[1740433621814,6.6299,150.88,150.85,0.04863512]
[1740433622122,0.04448341,150.89,150.85,0.04863512]
[1740433623222,0.04448341,150.89,150.87,6.6298]
[1740433623522,6.6282,150.92,150.85,0.04863512]
[1740433623717,6.6282,150.92,150.88,6.6293]
[1740433624114,173.42,150.93,150.81,192.7116]
[1740433624322,173.42,150.93,150.83,6.6315]
[1740433624715,6.6294,150.89,150.86,0.04461075]
[1740433625518,0.04292223,150.9,150.86,0.04461075]
[1740433626520,0.04292223,150.9,150.86,6.67481075]
[1740433626722,0.04292223,150.9,150.86,0.04461075]
[1740433626923,0.04292223,150.9,150.87,6.6299]
[1740433627124,0.04292223,150.9,150.86,0.04461075]
[1740433627722,0.04292223,150.9,150.89,6.6292]
[1740433629125,16.7707,150.97,150.86,0.04461075]
[1740433629423,16.7707,150.97,150.81,192.7116]
[1740433630017,6.627,150.94,150.81,192.7116]
[1740433630325,0.04911487,150.91,150.87,0.04300803]
[1740433631921,6.67771487,150.91,150.87,0.04300803]
[1740433632729,0.04911487,150.91,150.87,0.04300803]
[1740433632924,3.7553,150.9,150.87,0.04300803]
[1740433633227,6.6295,150.89,150.87,0.04300803]
[1740433634326,10.384,150.9,150.87,0.04300803]
[1740433636721,3.7553,150.9,150.87,0.04300803]
[1740433636924,0.04911487,150.91,150.87,0.04300803]
[1740433637828,6.67751487,150.91,150.87,0.04300803]
[1740433638425,0.04911487,150.91,150.87,0.04300803]
[1740433642131,6.629,150.9,150.87,0.04300803]
[1740433642333,0.04911487,150.91,150.87,0.04300803]
[1740433643333,6.67751487,150.91,150.87,0.04300803]
[1740433643535,0.04911487,150.91,150.87,0.04300803]
[1740433643730,1.65709451,150.9,150.77,1.2295]
[1740433643931,5.53529451,150.89,150.75,105.88738332]
[1740433644133,1.65709451,150.88,150.75,105.88738332]
[1740433644327,1.65709451,150.87,150.79,6.6333]
[1740433644634,12.55743507,150.86,150.75,105.88738332]
[1740433644836,1.65743507,150.85,150.75,105.88738332]
[1740433645138,0.04996613,150.83,150.79,0.04935218]
[1740433645531,6.68206613,150.83,150.79,0.04935218]
[1740433645725,0.04996613,150.83,150.79,0.04935218]
[1740433645929,1.9953,150.82,150.79,0.04935218]
[1740433647131,10.5423,150.82,150.79,0.04935218]
[1740433647530,3.9099,150.82,150.79,0.04935218]
[1740433647930,10.5423,150.82,150.79,0.04935218]
[1740433648237,10.5423,150.82,150.68,70.59158888]
[1740433648238,1.65815258,150.81,150.68,70.59158888]
[1740433648535,3.9099,150.82,150.7,1.1884]
[1740433648732,8.29095838,150.81,150.7,1.1884]
[1740433648936,3.9099,150.82,150.7,1.1884]
[1740433649339,0.04635724,150.78,150.77,6.6344]
[1740433649835,6.6311,150.85,150.78,6.6337]
[1740433650233,6.6311,150.85,150.7,1.1884]
[1740433650534,6.6311,150.85,150.79,6.6334]
[1740433650736,6.6314,150.84,150.7,1.1884]
[1740433650936,6.67656644,150.84,150.8,0.05059422]
[1740433651131,6.6314,150.84,150.71,1.10672462]
[1740433651335,6.6319,150.83,150.8,0.04763405]
[1740433651632,6.67362929,150.83,150.78,6.6339]
[1740433651837,6.67362929,150.83,150.8,0.04288667]
[1740433652642,0.04172929,150.83,150.8,0.04288667]
[1740433652939,6.6327,150.81,150.8,8.667e-05]
[1740433653243,0.04172929,150.83,150.72,6.6364]
[1740433653438,1.8956,150.82,150.72,6.6364]
[1740433653841,1.8956,150.82,150.73,6.6359]
[1740433653842,6.6342,150.78,150.73,6.6359]
[1740433654237,0.05004055,150.77,150.74,0.04449216]
[1740433655943,0.05004055,150.77,150.74,6.68019216]
[1740433656340,0.05004055,150.77,150.74,0.04449216]
[1740433656744,0.05004055,150.77,150.69,70.59158888]
[1740433657042,1.95634055,150.77,150.69,6.6378]
[1740433657539,1.95634055,150.77,150.7,6.6372]
[1740433657740,1.9063,150.77,150.64,70.59158888]
[1740433657935,1.9063,150.77,150.72,0.04617792]
[1740433657936,0.04738212,150.75,150.72,0.04617792]
[1740433660742,0.04738212,150.75,150.72,6.68277792]
[1740433661045,0.04738212,150.75,150.72,0.04617792]
[1740433661944,3.85578212,150.75,150.66,6.6392]
[1740433662149,6.6369,150.72,150.66,6.6392]
[1740433662847,6.6371,150.71,150.66,6.6392]
[1740433663044,0.04997458,150.71,150.67,0.04821107]
[1740433663245,10.9,150.7,150.59,70.59158888]
[1740433663447,6.6382,150.69,150.62,6.6407]
[1740433663649,10.9,150.7,150.62,6.6407]
[1740433663841,1.9635,150.68,150.62,6.6407]
[1740433664448,0.04955554,150.67,150.63,0.04632763]
[1740433665649,6.6394,150.66,150.63,0.04632763]
[1740433666049,0.04955554,150.67,150.56,70.59158888]
[1740433666248,6.6405,150.64,150.56,77.23498888]
[1740433666543,1.9635,150.68,150.56,70.59158888]
[1740433667251,0.04878273,150.64,150.6,0.04548019]
[1740433667453,0.04878273,150.64,150.56,70.59158888]
[1740433668047,1.32775675,150.63,150.56,70.59158888]
[1740433668257,184.6,150.62,150.48,70.59158888]
[1740433668752,0.04532505,150.57,150.48,70.59158888]
[1740433669051,0.04532505,150.57,150.51,6.6456]
[1740433669348,0.04532505,150.57,150.52,6.6451]
[1740433671151,0.04532505,150.57,150.48,70.59158888]
[1740433671653,0.04532505,150.57,150.54,6.6442]
[1740433672354,0.04532505,150.57,150.55,6.6441]
[1740433672550,0.04532505,150.57,150.48,70.59158888]
[1740433672752,0.04532505,150.57,150.47,1.4334]
[1740433672947,0.04532505,150.57,150.54,6.6444]
[1740433673143,6.6435,150.57,150.47,1.4334]
[1740433673343,6.6860332,150.57,150.47,1.4334]
[1740433673544,1.8962,150.61,150.51,6.6456]
[1740433673748,0.05076967,150.54,150.51,6.6456]
[1740433673951,1.9897,150.6,150.51,6.6456]
[1740433674154,0.0439965,150.54,150.51,6.6456]
[1740433674552,0.0439965,150.54,150.5,6.646]
[1740433674755,0.0439965,150.54,150.47,1.4334]
[1740433675148,0.0439965,150.54,150.51,6.6455]
[1740433675352,0.0439965,150.54,150.47,1.4334]
[1740433676453,0.0439965,150.54,150.53,6.645]
[1740433678355,0.0439965,150.54,150.47,1.4334]
[1740433678753,10.92,150.53,150.41,49.50713164]
[1740433679063,6.6475,150.48,150.43,6.6493]
[1740433680155,0.05046266,150.49,150.41,49.50713164]
[1740433680354,6.69756266,150.49,150.36,1.4862]
[1740433680558,6.6471,150.49,150.36,1.4862]
[1740433680757,0.0459914,150.44,150.43,6.6494]
[1740433681059,6.6477,150.47,150.36,1.4862]
[1740433681264,0.04703084,150.45,150.39,6.6509]
[1740433681457,0.04703084,150.45,150.36,1.4862]
[1740433681656,0.04703084,150.45,150.32,70.59158888]
[1740433681657,10.96703084,150.45,150.32,70.59158888]
[1740433681858,10.92,150.45,150.32,70.59158888]
[1740433682061,0.05105519,150.4,150.33,1.4917]
[1740433682262,0.05105519,150.4,150.35,6.6529]
[1740433682462,0.05105519,150.4,150.32,70.59158888]
[1740433682966,6.6521,150.37,150.32,70.59158888]
[1740433683165,10.92,150.36,150.26,1.3118]
[1740433683370,12.98283878,150.36,150.26,1.3118]
[1740433683572,19.586,150.36,150.26,1.3118]
[1740433683867,0.04286379,150.33,150.29,6.6556]
[1740433684069,0.04286379,150.33,150.26,1.3118]
[1740433684271,6.379e-05,150.33,150.26,1.3118]
[1740433684470,6.379e-05,150.33,150.32,6.6543]
[1740433685069,6.379e-05,150.33,150.26,1.3118]
[1740433685463,6.379e-05,150.33,150.28,0.04338631]
[1740433687471,6.65406379,150.33,150.28,0.04338631]
[1740433687773,3.9282,150.32,150.28,0.04338631]
[1740433688167,14.8482,150.32,150.28,0.04338631]
[1740433689264,14.8482,150.32,150.28,6.69938631]
[1740433689474,14.8482,150.32,150.28,0.04338631]
[1740433691167,3.9282,150.32,150.28,0.04338631]
[1740433691465,6.379e-05,150.33,150.28,0.04338631]
[1740433691867,1.2224607,150.32,150.28,0.04338631]
[1740433692169,6.379e-05,150.33,150.28,0.04338631]
[1740433692366,1.22248951,150.32,150.28,0.04338631]
[1740433692571,6.379e-05,150.33,150.28,0.04338631]
[1740433692769,6.6552,150.31,150.17,1.3251]
[1740433693175,3.1190542,150.3,150.17,1.3251]
[1740433693476,1.915,150.29,150.08,242.58843904]